bitfinex-derivatives/quotes_BTCF0:USTF0_20251110
["timestamp","ask_amount","ask_price","bid_price","bid_amount"]
[1762750628685,0.5340566,106180.0,106170.0,0.23658859]
[1762750628887,0.5340566,106180.0,106170.0,0.23858859]
[1762750629391,0.5340566,106180.0,106170.0,0.32306319]
[1762750632886,0.5230566,106180.0,106170.0,0.32306319]
[1762750634194,0.14320857,106180.0,106170.0,0.79421257]
[1762750634389,0.11551857,106180.0,106170.0,0.88839669]
[1762750634692,0.1461466,106180.0,106170.0,0.79478731]
[1762750635094,0.1461466,106180.0,106170.0,0.89478731]
[1762750635895,0.1461466,106180.0,106170.0,0.98899521]
[1762750636091,0.1461466,106180.0,106170.0,1.08260459]
[1762750636394,0.08330857,106180.0,106170.0,1.08260459]
[1762750637094,1.59430887,106180.0,106170.0,1.18260459]
[1762750637485,1.59430887,106180.0,106170.0,1.41808459]
[1762750637686,1.59430887,106180.0,106170.0,1.18260459]
[1762750637995,1.59430887,106180.0,106170.0,1.41808459]
[1762750638193,1.50010977,106180.0,106170.0,1.33360999]
[1762750638588,1.50010977,106180.0,106170.0,1.45122535]
[1762750638991,1.50010977,106180.0,106170.0,1.47470487]
[1762750639189,1.59430887,106180.0,106170.0,1.63100487]
[1762750639592,1.5965069,106180.0,106170.0,1.39552487]
[1762750640101,1.5965069,106180.0,106170.0,1.63100487]
[1762750640792,1.5965069,106180.0,106170.0,1.39552487]
[1762750640993,1.5965069,106180.0,106170.0,1.29552487]
[1762750642693,1.5965069,106180.0,106170.0,1.17790951]
[1762750643203,1.5965069,106180.0,106170.0,1.26254517]
[1762750643994,1.5965069,106180.0,106170.0,1.49802517]
[1762750644191,1.5965069,106180.0,106170.0,1.26254517]
[1762750644396,1.5965069,106180.0,106170.0,1.49802517]
[1762750644597,1.5965069,106180.0,106170.0,1.26254517]
[1762750644904,1.5965069,106180.0,106170.0,1.59802517]
[1762750645593,1.5965069,106180.0,106170.0,1.36254517]
[1762750645797,1.5965069,106180.0,106170.0,1.26254517]
[1762750647892,1.6110769,106180.0,106170.0,1.16833727]
[1762750648902,1.5965069,106180.0,106170.0,1.49369727]
[1762750650196,1.5965069,106180.0,106170.0,1.58790487]
[1762750651704,1.5965069,106180.0,106170.0,1.49369727]
[1762750651902,1.5965069,106180.0,106170.0,0.82506451]
[1762750651903,1.6110769,106180.0,106170.0,0.82506451]
[1762750652094,1.6110769,106180.0,106170.0,1.22061727]
[1762750653002,1.6110769,106180.0,106170.0,1.32061727]
[1762750653302,1.6110769,106180.0,106170.0,1.22061727]
[1762750654409,1.6110769,106180.0,106170.0,1.32061727]
[1762750661310,1.6110769,106180.0,106170.0,1.19310727]
[1762750663215,1.6110769,106180.0,106170.0,1.29310727]
[1762750665022,1.6110769,106180.0,106170.0,1.20847161]
[1762750668524,1.6110769,106180.0,106170.0,0.77426161]
[1762750668724,1.6110769,106180.0,106170.0,0.44894161]
[1762750669322,1.6110769,106180.0,106170.0,0.77426161]
[1762750669821,1.6110769,106180.0,106170.0,0.54894161]
[1762750670027,1.6110769,106180.0,106170.0,0.87426161]
[1762750670614,1.6110769,106180.0,106170.0,0.54894161]
[1762750671119,1.6110769,106180.0,106170.0,0.87426161]
[1762750671618,1.6110769,106180.0,106170.0,0.77426161]
[1762750671828,1.6110769,106180.0,106170.0,0.44894161]
[1762750672127,1.6110769,106180.0,106170.0,0.77426161]
[1762750672323,1.6110769,106180.0,106170.0,0.44894161]
[1762750672622,1.6110769,106180.0,106170.0,0.87426161]
[1762750673226,1.6110769,106180.0,106170.0,0.95889727]
[1762750673528,1.6110769,106180.0,106170.0,0.95885727]
[1762750673831,1.6110769,106180.0,106170.0,0.63357727]
[1762750674822,1.6110769,106180.0,106170.0,0.56334451]
[1762750675227,1.6110769,106180.0,106170.0,0.88862451]
[1762750675819,1.6110769,106180.0,106170.0,0.56334451]
[1762750676228,1.6110769,106180.0,106170.0,0.88862451]
[1762750676726,1.6110769,106180.0,106170.0,0.95885727]
[1762750679031,1.6110769,106180.0,106170.0,0.85885727]
[1762750680224,1.6110769,106180.0,106170.0,0.95885727]
[1762750682431,1.6110769,106180.0,106170.0,0.85885727]
[1762750682824,1.6110769,106180.0,106170.0,1.21965727]
[1762750683129,1.6110769,106180.0,106170.0,1.31386507]
[1762750683328,1.6110769,106180.0,106170.0,1.31965727]
[1762750684134,1.6110769,106180.0,106170.0,1.41386507]
[1762750686232,1.6110769,106180.0,106170.0,1.23502161]
[1762750688128,1.6110769,106180.0,106170.0,1.32922941]
[1762750688335,0.00010977,106180.0,106170.0,1.33970941]
[1762750688527,0.00010977,106180.0,106170.0,1.65982507]
[1762750688727,0.00010977,106180.0,106170.0,1.33970941]
[1762750688928,0.02443977,106180.0,106170.0,1.33970941]
[1762750689131,0.1448065,106180.0,106170.0,1.33013727]
[1762750689438,0.1448065,106180.0,106170.0,1.43970911]
[1762750690033,0.1448065,106180.0,106170.0,1.59600911]
[1762750691041,0.1448065,106180.0,106170.0,1.68064477]
[1762750693934,0.1448065,106180.0,106170.0,1.58643727]
[1762750694136,0.1587365,106180.0,106170.0,1.25067727]
[1762750694341,0.1587365,106180.0,106170.0,1.47591727]
[1762750695133,0.1587365,106180.0,106170.0,1.39128161]
[1762750695736,0.1587365,106180.0,106170.0,0.69904333]
[1762750695942,0.1587365,106180.0,106170.0,1.13498161]
[1762750696947,0.1587365,106180.0,106170.0,1.23498161]
[1762750697445,0.1587365,106180.0,106170.0,1.31961727]
[1762750697742,0.1587365,106180.0,106170.0,1.21961727]
[1762750698342,0.1587365,106180.0,106170.0,1.06474885]
[1762750698542,0.1587365,106180.0,106170.0,1.13498161]
[1762750698742,0.1587365,106180.0,106170.0,1.23498161]
[1762750699351,0.1587365,106180.0,106170.0,1.16474885]
[1762750699846,0.1587365,106180.0,106170.0,0.70394885]
[1762750700842,0.1587365,106180.0,106170.0,0.65715988]
[1762750704150,0.1587365,106180.0,106170.0,0.23773576]
[1762750704452,0.1587365,106180.0,106170.0,0.56293576]
[1762750705345,0.5195365,106180.0,106170.0,0.23773576]
[1762750705552,0.5195365,106180.0,106170.0,0.56293576]
[1762750706552,0.5195365,106180.0,106170.0,0.53634576]
[1762750706845,0.5195365,106180.0,106170.0,0.41516921]
[1762750706846,0.61321305,106180.0,106170.0,0.41516921]
[1762750707050,0.1522065,106160.0,106150.0,0.22353709]
[1762750707253,0.15440453,106160.0,106150.0,0.54873709]
[1762750707443,0.15440453,106160.0,106150.0,0.64292121]
[1762750708239,0.15440453,106160.0,106150.0,0.65742682]
[1762750708443,0.15440453,106160.0,106150.0,1.01822682]
[1762750709153,0.15440453,106160.0,106150.0,1.02022682]
[1762750709452,0.15440453,106160.0,106150.0,1.09456689]
[1762750710047,0.15440453,106160.0,106150.0,1.09856689]
[1762750710447,0.14087453,106160.0,106150.0,1.20920689]
[1762750711257,0.09641453,106160.0,106150.0,1.39710864]
[1762750711547,0.00219803,106160.0,106150.0,1.39710864]
[1762750711752,0.00219803,106160.0,106150.0,1.49710864]
[1762750712456,0.13881481,106170.0,106160.0,0.05563]
[1762750712654,0.14101284,106170.0,106160.0,0.6037831]
[1762750713152,0.14101284,106170.0,106160.0,0.69798497]
[1762750713559,0.14101284,106170.0,106160.0,0.79798497]
[1762750713756,0.14101284,106170.0,106160.0,0.79998497]
[1762750714455,0.14101284,106170.0,106160.0,0.88462063]
[1762750714949,0.15454284,106170.0,106160.0,0.59726753]
[1762750715149,0.15454284,106170.0,106160.0,0.77714063]
[1762750715348,0.15454284,106170.0,106160.0,0.68146408]
[1762750715548,0.15454284,106170.0,106160.0,0.68646408]
[1762750715946,0.15454284,106170.0,106160.0,0.32566408]
[1762750716148,0.51534284,106170.0,106160.0,0.23802842]
[1762750716348,0.51534284,106170.0,106160.0,0.23502842]
[1762750716544,0.51534284,106170.0,106160.0,0.23902842]
[1762750717044,1.54679944,106170.0,106160.0,0.79820137]
[1762750717245,0.00233944,106170.0,106160.0,0.97451358]
[1762750717953,0.00233944,106170.0,106160.0,0.98083703]
[1762750718160,0.00233944,106170.0,106160.0,0.97883703]
[1762750718354,0.00233944,106170.0,106160.0,1.07883703]
[1762750718554,0.00233944,106170.0,106160.0,1.07683703]
[1762750718749,0.00233944,106170.0,106160.0,1.08283703]
[1762750719459,0.09654704,106170.0,106160.0,1.12181673]
[1762750719866,0.00233944,106170.0,106160.0,1.00420137]
[1762750720562,0.00014141,106170.0,106160.0,1.00420137]
[1762750721558,0.00014141,106170.0,106160.0,0.99720137]
[1762750721750,0.00014141,106170.0,106160.0,1.00420137]
[1762750721954,0.00014141,106170.0,106160.0,1.08885463]
[1762750722156,0.00014141,106170.0,106160.0,1.00420137]
[1762750722358,0.00014141,106170.0,106160.0,0.99720137]
[1762750722556,0.00014141,106170.0,106160.0,1.00420137]
[1762750723458,0.00014141,106170.0,106160.0,1.12181673]
[1762750723654,0.00014141,106170.0,106160.0,1.2064797]
[1762750723854,0.00014141,106170.0,106160.0,1.24516434]
[1762750724361,0.00014141,106170.0,106160.0,1.16050137]
[1762750724666,0.00014141,106170.0,106160.0,1.24516862]
[1762750725761,0.00014141,106170.0,106160.0,1.16050137]
[1762750726265,1.50014141,106170.0,106160.0,1.16050137]
[1762750728657,1.50014141,106170.0,106160.0,1.25417792]
[1762750728970,1.50233944,106170.0,106160.0,1.25417792]
[1762750730867,0.00233944,106170.0,106160.0,1.25417792]
[1762750731260,0.00233944,106170.0,106160.0,1.24717792]
[1762750731461,0.00233944,106170.0,106160.0,1.25417792]
[1762750732070,1.50010977,106180.0,106170.0,0.1437275]
[1762750732263,1.50084241,106180.0,106170.0,0.92556208]
[1762750732465,1.59504101,106180.0,106170.0,0.92503113]
[1762750732665,1.59504101,106180.0,106170.0,1.01922413]
[1762750733165,1.50010977,106180.0,106170.0,1.01922413]
[1762750733372,0.00010977,106180.0,106170.0,1.30710818]
[1762750733559,0.13946121,106190.0,106180.0,0.0519]
[1762750733762,1.65433385,106190.0,106180.0,0.23561113]
[1762750734069,1.65433385,106190.0,106180.0,0.95721113]
[1762750734370,1.65433385,106190.0,106180.0,1.05138639]
[1762750734772,1.65433385,106190.0,106180.0,1.15338639]
[1762750734972,1.56014405,106190.0,106180.0,1.15838639]
[1762750735570,1.65433385,106190.0,106180.0,1.15838639]
[1762750736077,1.65433385,106190.0,106180.0,1.15338639]
[1762750736271,1.65433385,106190.0,106180.0,1.15738639]
[1762750736567,1.65433385,106190.0,106180.0,1.15838639]
[1762750737067,1.65433385,106190.0,106180.0,1.15538639]
[1762750737272,1.65433385,106190.0,106180.0,1.15738639]
[1762750737867,0.02325405,106190.0,106180.0,1.45979164]
[1762750738173,0.00087405,106190.0,106180.0,1.45979164]
[1762750738372,0.02325405,106190.0,106180.0,1.43379969]
[1762750738674,0.14019385,106190.0,106180.0,1.33960099]
[1762750739371,0.15433385,106190.0,106180.0,1.32507099]
[1762750739575,0.15433385,106190.0,106180.0,1.15738639]
[1762750740180,0.15433385,106190.0,106180.0,1.22507099]
[1762750740472,0.15433385,106190.0,106180.0,1.12507099]
[1762750741371,0.15433385,106190.0,106180.0,1.22507099]
[1762750741759,0.15433385,106190.0,106180.0,1.05738639]
[1762750742074,0.15433385,106190.0,106180.0,0.92802984]
[1762750742770,0.15433385,106190.0,106180.0,0.63491444]
[1762750743370,0.15433385,106190.0,106180.0,0.63291444]
[1762750743577,0.15433385,106190.0,106180.0,0.63491444]
[1762750744078,0.15433385,106190.0,106180.0,0.54073918]
[1762750744278,0.15433385,106190.0,106180.0,0.54069918]
[1762750744771,0.51513385,106190.0,106180.0,0.54069918]
[1762750745172,0.51513385,106190.0,106180.0,0.07388263]
[1762750745173,0.6088104,106190.0,106180.0,0.07388263]
[1762750745376,0.6088104,106190.0,106180.0,0.33127803]
[1762750745561,0.51513385,106190.0,106180.0,0.33127803]
[1762750745761,0.6088104,106190.0,106180.0,0.00619803]
[1762750745960,0.6088104,106190.0,106180.0,0.004]
[1762750746171,1.2088104,106190.0,106180.0,0.004]
[1762750746375,1.2088104,106190.0,106180.0,0.002]
[1762750746670,0.1393287,106180.0,106170.0,0.40974725]
[1762750746874,0.15420134,106180.0,106170.0,0.41194528]
[1762750748176,0.15420134,106180.0,106170.0,0.32727803]
[1762750748381,0.15420134,106180.0,106170.0,0.32927803]
[1762750748676,0.15420134,106180.0,106170.0,0.41394528]
[1762750749276,0.15420134,106180.0,106170.0,0.43664528]
[1762750749980,0.15420134,106180.0,106170.0,0.55368183]
[1762750750280,0.15420134,106180.0,106170.0,0.55168183]
[1762750751178,0.15420134,106180.0,106170.0,0.55368183]
[1762750752578,0.15420134,106180.0,106170.0,0.46901458]
[1762750755581,0.15420134,106180.0,106170.0,0.56901458]
[1762750757776,0.15420134,106180.0,106170.0,0.82981458]
[1762750758782,0.15420134,106180.0,106170.0,0.92981458]
[1762750759482,0.15420134,106180.0,106170.0,0.46901458]
[1762750759982,0.51500134,106180.0,106170.0,0.46901458]
[1762750760870,0.58526676,106180.0,106170.0,0.44560345]
[1762750762676,0.51500134,106180.0,106170.0,0.44560345]
[1762750762877,0.58526676,106180.0,106170.0,0.44560345]
[1762750764485,0.65553218,106180.0,106170.0,0.32927803]
[1762750765083,0.65553218,106180.0,106170.0,0.35144803]
[1762750765288,0.65553218,106180.0,106170.0,0.43611528]
[1762750765586,0.65553218,106180.0,106170.0,0.43411528]
[1762750766183,0.65653218,106180.0,106170.0,0.34944803]
[1762750766380,0.65653218,106180.0,106170.0,0.37201803]
[1762750767190,0.65653218,106180.0,106170.0,0.32727803]
[1762750767392,0.65653218,106180.0,106170.0,0.34944803]
[1762750767587,0.65653218,106180.0,106170.0,0.04693803]
[1762750768590,0.65653218,106180.0,106170.0,0.02436803]
[1762750768991,0.65653218,106180.0,106170.0,0.00219803]
[1762750771192,0.65653218,106180.0,106170.0,0.02436803]
[1762750772990,0.65653218,106180.0,106170.0,0.00219803]
[1762750775401,0.1516175,106170.0,106160.0,0.52489408]
[1762750775590,0.58341556,106170.0,106160.0,0.52709211]
[1762750777496,0.58341556,106170.0,106160.0,0.52909211]
[1762750778096,0.58341556,106170.0,106160.0,0.59935753]
[1762750778796,0.58341556,106170.0,106160.0,0.52909211]
[1762750779496,0.65368098,106170.0,106160.0,9e-08]
[1762750779998,0.97872098,106170.0,106160.0,9e-08]
[1762750789205,1.0489864,106170.0,106160.0,9e-08]
[1762750789410,0.1522164,106160.0,106150.0,6e-08]
[1762750789603,0.65574527,106160.0,106150.0,6e-08]
[1762750789803,0.72601069,106160.0,106150.0,6e-08]
[1762750790006,0.65574527,106160.0,106150.0,0.07637493]
[1762750790205,0.1533153,106150.0,106140.0,0.07026542]
[1762750790403,0.58666909,106150.0,106140.0,0.08499559]
[1762750791612,0.58666909,106150.0,106140.0,0.09299559]
[1762750793811,0.65693451,106150.0,106140.0,0.02273017]
[1762750794808,0.58666909,106150.0,106140.0,0.1700033]
[1762750795014,0.58666909,106150.0,106140.0,0.07826542]
[1762750795316,0.65693451,106150.0,106140.0,0.07826542]
[1762750795815,0.58666909,106150.0,106140.0,0.07826542]
[1762750797009,0.51640367,106150.0,106140.0,0.16320813]
[1762750797215,0.51640367,106150.0,106140.0,0.23347355]
[1762750797216,0.15560367,106150.0,106140.0,0.23347355]
[1762750798215,0.15560367,106150.0,106140.0,0.59427355]
[1762750798416,0.15560367,106150.0,106140.0,0.77310551]
[1762750798716,0.15560367,106150.0,106140.0,0.7731038]
[1762750798919,0.15560367,106150.0,106140.0,0.84677236]
[1762750799219,0.15560367,106150.0,106140.0,0.86215285]
[1762750799804,0.15560367,106150.0,106140.0,0.94677657]
[1762750801213,0.15560367,106150.0,106140.0,0.86215285]
[1762750801413,0.15560367,106150.0,106140.0,0.76794211]
[1762750802217,0.15560367,106150.0,106140.0,0.88555747]
[1762750803119,0.15560367,106150.0,106140.0,0.76794211]
[1762750808513,9.034e-05,106150.0,106140.0,0.86217621]
[1762750808713,0.09431564,106150.0,106140.0,1.27656674]
[1762750808920,9.034e-05,106150.0,106140.0,1.27656674]
[1762750809119,9.034e-05,106150.0,106140.0,1.04104674]
[1762750809315,0.13116421,106160.0,106150.0,0.0942253]
[1762750809623,0.13116421,106160.0,106150.0,0.85029072]
[1762750809811,0.00014141,106160.0,106150.0,1.0850323]
[1762750810019,0.09435781,106160.0,106150.0,0.990807]
[1762750810213,0.09435781,106160.0,106150.0,1.07546679]
[1762750810524,0.09435781,106160.0,106150.0,1.26969209]
[1762750811715,0.09435781,106160.0,106150.0,1.27169209]
[1762750812025,0.00014141,106160.0,106150.0,1.27469209]
[1762750812628,0.09435781,106160.0,106150.0,1.26969209]
[1762750812817,0.09435781,106160.0,106150.0,1.28169209]
[1762750813125,0.09435781,106160.0,106150.0,1.18746679]
[1762750813825,0.09435781,106160.0,106150.0,1.28169199]
[1762750814425,0.11751781,106160.0,106150.0,1.28169199]
[1762750814626,0.11751781,106160.0,106150.0,1.27969199]
[1762750815026,0.11751781,106160.0,106150.0,1.18546679]
[1762750815322,0.11751781,106160.0,106150.0,1.28346679]
[1762750815627,0.15564584,106160.0,106150.0,1.18546679]
[1762750816034,1.65564584,106160.0,106150.0,1.18546679]
[1762750816326,1.65564584,106160.0,106150.0,1.18346679]
[1762750817926,1.65564584,106160.0,106150.0,1.098807]
[1762750820528,1.65564584,106160.0,106150.0,0.56301074]
[1762750820731,1.65564584,106160.0,106150.0,0.53906542]
[1762750820732,1.72591126,106160.0,106150.0,0.53906542]
[1762750820924,1.65564584,106160.0,106150.0,0.88743697]
[1762750821124,1.65564584,106160.0,106150.0,0.69372]
[1762750821328,1.65564584,106160.0,106150.0,0.33292]
[1762750821836,1.65564584,106160.0,106150.0,0.32792]
[1762750822030,1.65564584,106160.0,106150.0,0.32992]
[1762750822225,1.65564584,106160.0,106150.0,0.42363697]
[1762750822828,1.65564584,106160.0,106150.0,0.78443697]
[1762750823226,1.65564584,106160.0,106150.0,0.42363697]
[1762750823534,1.65564584,106160.0,106150.0,0.78443697]
[1762750827438,1.65564584,106160.0,106150.0,0.88443697]
[1762750827841,1.65564584,106160.0,106150.0,0.78443697]
[1762750829338,1.65564584,106160.0,106150.0,0.88443697]
[1762750829836,1.65564584,106160.0,106150.0,0.78443697]
[1762750831037,2.01644584,106160.0,106140.0,0.08834585]
[1762750831336,0.5125452,106150.0,106140.0,0.32492]
[1762750831644,0.51474323,106150.0,106140.0,0.41863697]
[1762750832242,0.51474323,106150.0,106140.0,0.43357982]
[1762750833044,0.51474323,106150.0,106140.0,0.43657982]
[1762750833244,0.51474323,106150.0,106140.0,0.51305239]
[1762750833943,0.51474323,106150.0,106140.0,0.51705239]
[1762750834641,0.51474323,106150.0,106140.0,0.51605239]
[1762750835229,0.51474323,106150.0,106140.0,0.09741542]
[1762750835435,0.51474323,106150.0,106140.0,0.42233542]
[1762750835636,0.51474323,106150.0,106140.0,0.51605239]
[1762750836041,0.51474323,106150.0,106140.0,0.42233542]
[1762750836343,0.6084602,106150.0,106140.0,0.09741542]
[1762750837848,0.51474323,106150.0,106140.0,0.09741542]
[1762750838148,0.51474323,106150.0,106140.0,0.19113239]
[1762750838443,0.51474323,106150.0,106140.0,0.09741542]
[1762750839447,0.6084602,106150.0,106140.0,2e-08]
[1762750839643,0.51474323,106150.0,106140.0,2e-08]
[1762750839844,0.143953,106130.0,106120.0,0.02144837]
[1762750840043,0.143953,106130.0,106120.0,0.39876605]
[1762750840044,0.961468,106130.0,106120.0,0.39876605]
[1762750840249,0.961468,106130.0,106120.0,0.32503837]
[1762750840647,0.86775103,106130.0,106120.0,0.00011837]
[1762750840843,0.961468,106130.0,106120.0,0.02144837]
[1762750841048,0.961468,106130.0,106120.0,0.02244837]
[1762750841252,0.86775103,106130.0,106120.0,0.02244837]
[1762750841752,0.86775103,106130.0,106120.0,0.04416837]
[1762750842452,0.86775103,106130.0,106120.0,0.04316837]
[1762750842646,0.86875103,106130.0,106120.0,0.04316837]
[1762750844944,0.962468,106130.0,106120.0,7e-08]
[1762750845345,0.86875103,106130.0,106120.0,0.04305007]
[1762750845548,0.962468,106130.0,106120.0,0.04305007]
[1762750845952,0.96253918,106130.0,106120.0,0.02133007]
[1762750846155,0.91820918,106130.0,106120.0,7e-08]
[1762750848953,0.96614918,106130.0,106120.0,0.07623837]
[1762750849152,0.91820918,106130.0,106120.0,7e-08]
[1762750850759,0.82449221,106130.0,106120.0,7e-08]
[1762750852649,0.91820918,106130.0,106120.0,7e-08]
[1762750853357,0.96878918,106130.0,106120.0,0.12874905]
[1762750853558,0.87507221,106130.0,106120.0,0.14607704]
[1762750853750,0.87507221,106130.0,106120.0,0.05236007]
[1762750856445,0.82449221,106130.0,106120.0,7e-08]
[1762750856753,0.91820918,106130.0,106120.0,7e-08]
[1762750857653,0.91820918,106130.0,106120.0,0.07478326]
[1762750857855,0.91820918,106130.0,106120.0,7e-08]
[1762750860248,0.82449221,106130.0,106120.0,0.14607704]
[1762750860449,0.87507221,106130.0,106120.0,0.14607704]
[1762750862056,0.84403221,106130.0,106120.0,0.52657535]
[1762750862257,0.84403221,106130.0,106120.0,0.62082725]
[1762750862760,0.12243221,106130.0,106120.0,0.62082725]
[1762750862967,0.12243221,106130.0,106120.0,0.98162725]
[1762750863265,0.12143221,106130.0,106120.0,0.98262725]
[1762750863465,0.09651221,106130.0,106120.0,0.98262725]
[1762750863671,0.09651221,106130.0,106120.0,0.98562725]
[1762750864165,0.09431418,106130.0,106120.0,0.98562725]
[1762750864554,0.09431418,106130.0,106120.0,1.08562725]
[1762750864761,0.48010091,106140.0,106130.0,0.06826]
[1762750864959,0.45737894,106140.0,106130.0,0.48693697]
[1762750865268,0.50795894,106140.0,106130.0,0.58116547]
[1762750865764,0.50800606,106140.0,106130.0,0.58116547]
[1762750865966,0.14486662,106140.0,106130.0,1.13620847]
[1762750866263,0.11920662,106140.0,106130.0,1.13620847]
[1762750866468,4.712e-05,106140.0,106130.0,1.46548544]
[1762750866661,4.712e-05,106140.0,106130.0,1.46648544]
[1762750867055,0.09428122,106140.0,106130.0,1.46648544]
[1762750867259,0.09428122,106140.0,106130.0,1.33092544]
[1762750867459,4.712e-05,106140.0,106130.0,1.56648544]
[1762750867865,4.712e-05,106140.0,106130.0,1.57048544]
[1762750868260,4.712e-05,106140.0,106130.0,1.57348544]
[1762750868662,4.712e-05,106140.0,106130.0,1.33492544]
[1762750868971,4.712e-05,106140.0,106130.0,1.57148544]
[1762750869370,0.09428122,106140.0,106130.0,1.57148544]
[1762750869570,0.09428122,106140.0,106130.0,1.56648544]
[1762750869571,4.712e-05,106140.0,106130.0,1.56648544]
[1762750869768,4.712e-05,106140.0,106130.0,1.33392544]
[1762750869972,4.712e-05,106140.0,106130.0,1.56948544]
[1762750870973,4.712e-05,106140.0,106130.0,1.33392544]
[1762750871184,0.02506141,106150.0,106140.0,0.1600942]
[1762750871375,0.14494671,106150.0,106140.0,0.69875373]
[1762750871574,0.14494671,106150.0,106140.0,0.61409394]
[1762750871773,0.14494671,106150.0,106140.0,0.80253878]
[1762750871970,0.00014141,106150.0,106140.0,0.88719857]
[1762750872171,0.09436661,106150.0,106140.0,0.88719857]
[1762750872371,0.09436661,106150.0,106140.0,1.00253878]
[1762750872670,0.09436661,106150.0,106140.0,1.08719857]
[1762750873270,0.14494661,106150.0,106140.0,0.90930468]
[1762750873879,0.14494661,106150.0,106140.0,1.00253878]
[1762750874178,0.14494661,106150.0,106140.0,1.00753878]
[1762750874376,0.14494661,106150.0,106140.0,0.91630468]
[1762750874875,0.14494661,106150.0,106140.0,0.91330468]
[1762750875077,0.14494661,106150.0,106140.0,0.91430468]
[1762750875678,0.14494661,106150.0,106140.0,0.91230468]
[1762750876675,0.11928661,106150.0,106140.0,0.91230468]
[1762750877176,0.11928661,106150.0,106140.0,1.00653878]
[1762750877372,0.14714464,106150.0,106140.0,0.91230468]
[1762750877871,0.14714464,106150.0,106140.0,1.00653878]
[1762750878475,0.09656464,106150.0,106140.0,1.00653878]
[1762750879680,0.0942252,106150.0,106140.0,1.04789575]
[1762750879881,1.5,106160.0,106150.0,0.06759]
[1762750879882,1.5942216,106160.0,106150.0,0.06759]
[1762750880072,1.5942216,106160.0,106150.0,0.94070394]
[1762750880375,1.59641963,106160.0,106150.0,0.84698697]
[1762750880680,1.59641963,106160.0,106150.0,0.94119771]
[1762750880980,1.59641963,106160.0,106150.0,1.04119771]
[1762750881778,1.59641963,106160.0,106150.0,1.04219771]
[1762750882471,1.59641963,106160.0,106150.0,1.04119771]
[1762750882672,1.59641963,106160.0,106150.0,1.04419771]
[1762750882872,1.59641963,106160.0,106150.0,1.1612839]
[1762750883280,1.59641963,106160.0,106150.0,1.1592839]
[1762750883585,1.59641963,106160.0,106150.0,1.1602839]
[1762750884182,1.59641963,106160.0,106150.0,1.1592839]
[1762750892084,0.14745963,106160.0,106150.0,1.2535092]
[1762750892275,0.14745963,106160.0,106150.0,1.3535092]
[1762750893884,0.16071561,106170.0,106160.0,0.05268]
[1762750894089,0.16291364,106170.0,106160.0,0.87881544]
[1762750894881,0.16491364,106170.0,106160.0,0.87881544]
[1762750895087,0.16591364,106170.0,106160.0,0.87881544]
[1762750895391,0.16591364,106170.0,106160.0,0.94908316]
[1762750895583,0.16591364,106170.0,106160.0,0.97881544]
[1762750896285,0.16591364,106170.0,106160.0,0.72428316]
[1762750896483,0.16391364,106170.0,106160.0,1.04908316]
[1762750896789,0.16391364,106170.0,106160.0,0.97881544]
[1762750897175,0.16291364,106170.0,106160.0,1.0548592]
[1762750897376,0.16291364,106170.0,106160.0,1.0558592]
[1762750898388,0.14539561,106170.0,106160.0,1.23522992]
[1762750898589,0.11870901,106170.0,106160.0,1.48584642]
[1762750898790,0.00014141,106170.0,106160.0,1.48584642]
[1762750899190,0.09434901,106170.0,106160.0,1.48584642]
[1762750899982,0.09434901,106170.0,106160.0,1.39162992]
[1762750900188,0.14538901,106170.0,106160.0,1.39162992]
[1762750904992,0.23317476,106170.0,106160.0,0.49052376]
[1762750905191,0.23317476,106170.0,106160.0,0.52475148]
[1762750905495,0.16290704,106170.0,106160.0,0.9707292]
[1762750905791,0.16290704,106170.0,106160.0,1.04099692]
[1762750906388,0.16290704,106170.0,106160.0,0.9707292]
[1762750906590,0.16590704,106170.0,106160.0,0.9697292]
[1762750907299,0.16490704,106170.0,106160.0,0.9697292]
[1762750907596,0.16290704,106170.0,106160.0,0.9707292]
[1762750908593,0.16290704,106170.0,106160.0,1.0707292]
[1762750912395,0.23317476,106170.0,106160.0,1.0707292]
[1762750914597,0.16290704,106170.0,106160.0,1.0707292]
[1762750915198,0.16290704,106170.0,106160.0,0.9707292]
[1762750915593,0.23317476,106170.0,106160.0,0.9707292]
[1762750915894,0.09434901,106170.0,106160.0,1.13518992]
[1762750916293,0.09434901,106170.0,106160.0,1.23518992]
[1762750916689,0.09434901,106170.0,106160.0,1.32940632]
[1762750917000,0.09434901,106170.0,106160.0,1.42940632]
[1762750918096,0.00014141,106170.0,106160.0,1.42940632]
[1762750919696,1.594205,106180.0,106170.0,0.05743]
[1762750919896,1.594205,106180.0,106170.0,0.66551858]
[1762750920705,1.594205,106180.0,106170.0,0.85391908]
[1762750921003,1.594205,106180.0,106170.0,0.85971158]
[1762750921202,1.5,106180.0,106170.0,0.95391908]
[1762750921502,1.5961987,106180.0,106170.0,1.02145869]
[1762750922098,1.5971987,106180.0,106170.0,0.92725119]
[1762750922298,1.5971987,106180.0,106170.0,0.95971158]
[1762750922500,1.5971987,106180.0,106170.0,1.02725119]
[1762750922705,1.5971987,106180.0,106170.0,1.12145869]
[1762750922894,1.5941987,106180.0,106170.0,1.12545869]
[1762750923098,1.5,106180.0,106170.0,1.12545869]
[1762750923600,0.14050951,106190.0,106180.0,0.05976]
[1762750923801,0.14270754,106190.0,106180.0,0.95608316]
[1762750924202,0.14270754,106190.0,106180.0,1.05026728]
[1762750924806,0.14270754,106190.0,106180.0,1.15026728]
[1762750925307,0.04850944,106190.0,106180.0,1.15126728]
[1762750925607,0.16494042,106190.0,106180.0,1.24546668]
[1762750925809,0.16494042,106190.0,106180.0,1.15126728]
[1762750926012,1.55274239,106190.0,106180.0,1.15126728]
[1762750926211,1.55274239,106190.0,106180.0,1.24546668]
[1762750926412,1.53050191,106190.0,106180.0,1.24546668]
[1762750926715,1.53050191,106190.0,106180.0,1.34546668]
[1762750927213,1.39014141,106190.0,106180.0,1.34546668]
[1762750927411,1.48433191,106190.0,106180.0,1.25126728]
[1762750928301,0.09433191,106190.0,106180.0,1.25126728]
[1762750928506,0.09433191,106190.0,106180.0,1.50186668]
[1762750928703,0.00014141,106190.0,106180.0,1.50186668]
[1762750929616,0.01424,106210.0,106200.0,0.05249]
[1762750929617,0.1545881,106210.0,106200.0,0.05249]
[1762750929819,0.17897645,106210.0,106200.0,0.58797316]
[1762750930709,0.17897645,106210.0,106200.0,0.68797316]
[1762750931121,0.15678613,106210.0,106200.0,0.75551277]
[1762750931320,0.15878613,106210.0,106200.0,0.75551277]
[1762750932109,0.16178613,106210.0,106200.0,0.75551277]
[1762750932307,0.16178613,106210.0,106200.0,0.68797316]
[1762750934812,0.16178613,106210.0,106200.0,0.76452317]
[1762750936005,1.55178613,106210.0,106200.0,0.76452317]
[1762750936310,1.55178613,106210.0,106200.0,0.26219545]
[1762750936511,1.91258613,106210.0,106200.0,0.58683545]
[1762750936704,1.91258613,106210.0,106200.0,0.26219545]
[1762750936906,1.55178613,106210.0,106200.0,0.26219545]
[1762750937118,1.91258613,106210.0,106200.0,0.58683545]
[1762750945116,1.91258613,106210.0,106200.0,0.64761063]
[1762750945316,1.51400613,106210.0,106200.0,1.10256815]
[1762750945512,1.323557,106210.0,106200.0,1.36428956]
[1762750945712,1.32575503,106210.0,106200.0,1.20256815]